[Event "Live Chess"]
[Site "Chess.com"]
[Date "2024.06.01"]
[Round "-"]
[White "ProfessorChess101"]
[Black "lyricalschemes"]
[Result "1-0"]
[WhiteElo "2731"]
[BlackElo "2417"]
[TimeControl "300"]
[EndTime "15:10:47 PDT"]
[Termination "ProfessorChess101 won by resignation"]

1. d4 {[%clk 0:04:53.5]} 1... Nf6 {[%clk 0:04:58.1]} 2. c4 {[%clk 0:04:50.9]}
2... e6 {[%clk 0:04:57.2]} 3. Nc3 {[%clk 0:04:49.7]} 3... Bb4 {[%clk 0:04:54.2]}
4. Nf3 {[%clk 0:04:48.3]} 4... c5 {[%clk 0:04:52.9]} 5. e3 {[%clk 0:04:47.3]}
5... cxd4 {[%clk 0:04:50.8]} 6. exd4 {[%clk 0:04:42.1]} 6... d5 {[%clk
0:04:49.2]} 7. c5 {[%clk 0:04:35.5]} 7... Nc6 {[%clk 0:04:46.9]} 8. Bd2 {[%clk
0:04:33.7]} 8... Bxc3 {[%clk 0:04:44.8]} 9. Bxc3 {[%clk 0:04:32.9]} 9... Ne4
{[%clk 0:04:43.9]} 10. Bd3 {[%clk 0:04:30.1]} 10... O-O {[%clk 0:04:39.6]} 11.
Bxe4 {[%clk 0:04:13.5]} 11... dxe4 {[%clk 0:04:36.2]} 12. Nd2 {[%clk 0:04:13.2]}
12... Nxd4 {[%clk 0:04:24]} 13. Nxe4 {[%clk 0:04:10.2]} 13... e5 {[%clk
0:04:21.5]} 14. O-O {[%clk 0:03:54.3]} 14... Bf5 {[%clk 0:04:18]} 15. Nd6 {[%clk
0:03:49.8]} 15... Qf6 {[%clk 0:03:53.9]} 16. Bxd4 {[%clk 0:03:35.8]} 16... exd4
{[%clk 0:03:52.5]} 17. Qf3 {[%clk 0:03:28.5]} 17... Bc8 {[%clk 0:03:45.3]} 18.
Qxf6 {[%clk 0:03:22.3]} 18... gxf6 {[%clk 0:03:43.2]} 19. Rad1 {[%clk 0:03:19]}
19... Be6 {[%clk 0:03:39.1]} 20. Rxd4 {[%clk 0:03:13.9]} 20... Bxa2 {[%clk
0:03:35.8]} 21. Ra1 {[%clk 0:02:52.1]} 21... Be6 {[%clk 0:03:32.3]} 22. Nxb7
{[%clk 0:02:34.9]} 22... Rfc8 {[%clk 0:03:27.1]} 23. b4 {[%clk 0:02:27.3]} 23...
Rc7 {[%clk 0:03:24.9]} 24. Nd6 {[%clk 0:02:22.2]} 24... a5 {[%clk 0:03:19.1]}
25. h3 {[%clk 0:01:59.5]} 25... a4 {[%clk 0:03:11.2]} 26. Ne4 {[%clk 0:01:31.5]}
26... Kg7 {[%clk 0:03:07.7]} 27. b5 {[%clk 0:01:16.9]} 27... f5 {[%clk
0:03:05.5]} 28. b6 {[%clk 0:01:16.2]} 28... Rc6 {[%clk 0:03:04.2]} 29. Raxa4
{[%clk 0:01:07.6]} 29... Rb8 {[%clk 0:02:51.5]} 30. Rd6 {[%clk 0:00:53.7]} 30...
fxe4 {[%clk 0:02:42.3]} 31. Rxc6 {[%clk 0:00:39.8]} 31... Bd7 {[%clk 0:02:40.9]}
32. Rxe4 {[%clk 0:00:39]} 32... Bxc6 {[%clk 0:02:39.4]} 33. Rd4 {[%clk
0:00:38.6]} 33... Rb7 {[%clk 0:02:33.1]} 34. Rd6 {[%clk 0:00:36.9]} 34... Ba4
{[%clk 0:02:30]} 35. f3 {[%clk 0:00:35]} 35... Kf8 {[%clk 0:02:27.8]} 36. Kf2
{[%clk 0:00:33.8]} 36... Ke7 {[%clk 0:02:27]} 37. Ke3 {[%clk 0:00:32.7]} 37...
Rb8 {[%clk 0:02:21.4]} 38. Rh6 {[%clk 0:00:31]} 38... Bc2 {[%clk 0:02:16.8]} 39.
Kd4 {[%clk 0:00:27.4]} 39... Bg6 {[%clk 0:02:07.2]} 40. Rh4 {[%clk 0:00:24.4]}
40... Kd7 {[%clk 0:02:04.1]} 41. Kd5 {[%clk 0:00:21.8]} 41... f5 {[%clk
0:01:52.7]} 42. c6+ {[%clk 0:00:20.1]} 42... Ke7 {[%clk 0:01:51.4]} 43. Kc5
{[%clk 0:00:19.1]} 43... Be8 {[%clk 0:01:46.3]} 44. b7 {[%clk 0:00:17.4]} 44...
Bg6 {[%clk 0:01:39.5]} 45. Kb6 {[%clk 0:00:16.2]} 45... Kd6 {[%clk 0:01:38]} 46.
c7 {[%clk 0:00:15.3]} 46... Re8 {[%clk 0:01:32.9]} 47. c8=Q {[%clk 0:00:14.5]}
47... Ke5 {[%clk 0:01:32.4]} 48. Qxe8+ {[%clk 0:00:13.2]} 48... Bxe8 {[%clk
0:01:32]} 49. b8=Q+ {[%clk 0:00:13.1]} 1-0

[Event "Live Chess"]
[Site "Chess.com"]
[Date "2024.06.01"]
[Round "-"]
[White "Delacorta"]
[Black "CCGoodKnightRookie"]
[Result "0-1"]
[WhiteElo "1559"]
[BlackElo "2363"]
[TimeControl "300"]
[EndTime "15:11:00 PDT"]
[Termination "CCGoodKnightRookie won by resignation"]

1. d4 {[%clk 0:04:57.2]} 1... d5 {[%clk 0:04:59.2]} 2. Nf3 {[%clk 0:04:56.1]}
2... Nf6 {[%clk 0:04:58.3]} 3. e3 {[%clk 0:04:55.6]} 3... e6 {[%clk 0:04:57.6]}
4. Bd3 {[%clk 0:04:54.5]} 4... c5 {[%clk 0:04:56]} 5. b3 {[%clk 0:04:53.6]} 5...
Nc6 {[%clk 0:04:55.5]} 6. Bb2 {[%clk 0:04:52.4]} 6... cxd4 {[%clk 0:04:54.6]} 7.
exd4 {[%clk 0:04:51.2]} 7... Bd6 {[%clk 0:04:53.7]} 8. Ne5 {[%clk 0:04:49.3]}
8... Qc7 {[%clk 0:04:51.9]} 9. f4 {[%clk 0:04:48.3]} 9... a6 {[%clk 0:04:49.5]}
10. Nd2 {[%clk 0:04:46.4]} 10... b6 {[%clk 0:04:48.9]} 11. O-O {[%clk
0:04:44.3]} 11... Bb7 {[%clk 0:04:48.5]} 12. Kh1 {[%clk 0:04:40.9]} 12... Ne7
{[%clk 0:04:47.5]} 13. c4 {[%clk 0:04:31.9]} 13... Nf5 {[%clk 0:04:41.5]} 14.
Bxf5 {[%clk 0:04:17.9]} 14... exf5 {[%clk 0:04:39.4]} 15. cxd5 {[%clk
0:04:17.2]} 15... Nxd5 {[%clk 0:04:37.2]} 16. Rc1 {[%clk 0:04:15.8]} 16... Qe7
{[%clk 0:04:26.5]} 17. Re1 {[%clk 0:04:06.3]} 17... O-O {[%clk 0:04:18.6]} 18.
Ng6 {[%clk 0:03:52.9]} 18... Qf6 {[%clk 0:04:11.1]} 19. Nxf8 {[%clk 0:03:48.6]}
19... Rxf8 {[%clk 0:04:04.6]} 20. Qc2 {[%clk 0:03:08]} 20... Nxf4 {[%clk
0:04:01.1]} 21. Nf3 {[%clk 0:02:55.1]} 21... Qh6 {[%clk 0:03:54.4]} 22. Qxf5
{[%clk 0:02:43.5]} 22... Nxg2 {[%clk 0:03:49.9]} 23. Qg4 {[%clk 0:02:15.2]}
23... Bxf3 {[%clk 0:03:34.1]} 0-1

[Event "Live Chess"]
[Site "Chess.com"]
[Date "2024.06.01"]
[Round "-"]
[White "koekoekoe"]
[Black "GrahamCuthbert"]
[Result "1-0"]
[WhiteElo "1993"]
[BlackElo "1031"]
[TimeControl "300"]
[EndTime "15:11:29 PDT"]
[Termination "koekoekoe won by checkmate"]

1. d4 {[%clk 0:04:58.7]} 1... d5 {[%clk 0:04:58.3]} 2. Bf4 {[%clk 0:04:58.3]}
2... Nf6 {[%clk 0:04:55]} 3. e3 {[%clk 0:04:57.8]} 3... Bf5 {[%clk 0:04:50.9]}
4. c4 {[%clk 0:04:57.2]} 4... e6 {[%clk 0:04:41.5]} 5. Nc3 {[%clk 0:04:55.7]}
5... c6 {[%clk 0:04:39.7]} 6. Nf3 {[%clk 0:04:55]} 6... Nbd7 {[%clk 0:04:33.8]}
7. Be2 {[%clk 0:04:53.9]} 7... Bb4 {[%clk 0:04:29.7]} 8. O-O {[%clk 0:04:51.9]}
8... Bxc3 {[%clk 0:04:18.6]} 9. bxc3 {[%clk 0:04:51.8]} 9... Ne4 {[%clk
0:04:16.5]} 10. Qb3 {[%clk 0:04:48.9]} 10... b6 {[%clk 0:04:00.1]} 11. cxd5
{[%clk 0:04:35.5]} 11... cxd5 {[%clk 0:03:53.2]} 12. c4 {[%clk 0:04:34.8]} 12...
Bg4 {[%clk 0:03:36.1]} 13. cxd5 {[%clk 0:04:23.6]} 13... Bxf3 {[%clk 0:03:31.4]}
14. Bxf3 {[%clk 0:04:16.6]} 14... Nd2 {[%clk 0:03:25.4]} 15. Qb5 {[%clk
0:04:03.4]} 15... Nxf1 {[%clk 0:03:12.6]} 16. dxe6 {[%clk 0:04:02.8]} 16... fxe6
{[%clk 0:03:03.5]} 17. Bxa8 {[%clk 0:03:21.5]} 17... Qxa8 {[%clk 0:02:57]} 18.
Kxf1 {[%clk 0:03:19.4]} 18... Qb7 {[%clk 0:02:43.2]} 19. Rc1 {[%clk 0:03:15.1]}
19... O-O {[%clk 0:02:29.8]} 20. Rc7 {[%clk 0:03:02.9]} 20... a6 {[%clk
0:01:58.9]} 21. Qxd7 {[%clk 0:02:57.4]} 21... Qe4 {[%clk 0:01:45.2]} 22. Qxg7#
{[%clk 0:02:55.6]} 1-0

[Event "Live Chess"]
[Site "Chess.com"]
[Date "2024.06.01"]
[Round "-"]
[White "DylanMeyer1"]
[Black "RichardABates"]
[Result "0-1"]
[WhiteElo "1718"]
[BlackElo "2259"]
[TimeControl "300"]
[EndTime "15:11:46 PDT"]
[Termination "RichardABates won on time"]

1. c4 {[%clk 0:04:57.7]} 1... g6 {[%clk 0:04:58.6]} 2. Nc3 {[%clk 0:04:56.1]}
2... Bg7 {[%clk 0:04:57.2]} 3. g3 {[%clk 0:04:55.5]} 3... Nf6 {[%clk 0:04:55.7]}
4. Bg2 {[%clk 0:04:55]} 4... O-O {[%clk 0:04:54]} 5. e3 {[%clk 0:04:54.5]} 5...
c5 {[%clk 0:04:51.1]} 6. Nge2 {[%clk 0:04:53.6]} 6... Nc6 {[%clk 0:04:49.6]} 7.
d3 {[%clk 0:04:53.5]} 7... d6 {[%clk 0:04:47.5]} 8. O-O {[%clk 0:04:53.1]} 8...
e5 {[%clk 0:04:46.2]} 9. b3 {[%clk 0:04:52.3]} 9... Nh5 {[%clk 0:04:39]} 10. Bb2
{[%clk 0:04:51.4]} 10... f5 {[%clk 0:04:37.8]} 11. Qd2 {[%clk 0:04:49.7]} 11...
f4 {[%clk 0:04:32.2]} 12. exf4 {[%clk 0:04:46.3]} 12... exf4 {[%clk 0:04:30.9]}
13. f3 {[%clk 0:04:44.8]} 13... Nd4 {[%clk 0:04:25.6]} 14. Rae1 {[%clk
0:04:41.4]} 14... fxg3 {[%clk 0:04:16.2]} 15. hxg3 {[%clk 0:04:29.5]} 15... Bd7
{[%clk 0:04:08.7]} 16. g4 {[%clk 0:04:26.8]} 16... Nf6 {[%clk 0:03:41.9]} 17.
Nxd4 {[%clk 0:04:24.6]} 17... cxd4 {[%clk 0:03:40.8]} 18. Ne4 {[%clk 0:04:22]}
18... Nxe4 {[%clk 0:03:39.3]} 19. dxe4 {[%clk 0:04:21]} 19... Qb6 {[%clk
0:03:26.3]} 20. Rd1 {[%clk 0:04:11.2]} 20... d3+ {[%clk 0:03:14.2]} 21. Kh1
{[%clk 0:04:10.3]} 21... Bxb2 {[%clk 0:03:12.2]} 22. Qxb2 {[%clk 0:04:08.9]}
22... h5 {[%clk 0:03:01.9]} 23. gxh5 {[%clk 0:03:59.3]} 23... Rf4 {[%clk
0:02:59.8]} 24. Qf2 {[%clk 0:03:31.2]} 24... Qa5 {[%clk 0:02:56.1]} 25. Rxd3
{[%clk 0:03:27.9]} 25... Qxh5+ {[%clk 0:02:52.6]} 26. Kg1 {[%clk 0:03:26.4]}
26... Kf7 {[%clk 0:02:50.4]} 27. Rxd6 {[%clk 0:03:20.2]} 27... Be6 {[%clk
0:02:36.2]} 28. Rfd1 {[%clk 0:02:58.6]} 28... Rh8 {[%clk 0:02:33.1]} 29. Qg3
{[%clk 0:02:07.9]} 29... g5 {[%clk 0:02:31.4]} 30. e5 {[%clk 0:01:27.9]} 30...
Rh4 {[%clk 0:02:25.8]} 31. R1d4 {[%clk 0:01:13.5]} 31... Rh1+ {[%clk 0:02:12.3]}
32. Kf2 {[%clk 0:01:12.1]} 32... Ra1 {[%clk 0:02:03.6]} 33. Rd2 {[%clk
0:01:10.1]} 33... Qg6 {[%clk 0:01:55.4]} 34. Bf1 {[%clk 0:00:30.9]} 34... Rh1
{[%clk 0:01:49.4]} 35. Bd3 {[%clk 0:00:28.5]} 35... Qh6 {[%clk 0:01:38]} 36.
Rxe6 {[%clk 0:00:19.3]} 36... Qxe6 {[%clk 0:01:21.1]} 37. Be4 {[%clk 0:00:15.9]}
37... Qb6+ {[%clk 0:01:17.2]} 38. Ke2 {[%clk 0:00:13.8]} 38... Rae1+ {[%clk
0:01:11]} 39. Kd3 {[%clk 0:00:12.8]} 39... Qe3+ {[%clk 0:01:05.7]} 40. Kc2
{[%clk 0:00:11.5]} 40... Rc1+ {[%clk 0:01:02]} 41. Kb2 {[%clk 0:00:10.9]} 41...
Qxd2+ {[%clk 0:01:00.9]} 42. Ka3 {[%clk 0:00:10.8]} 42... Qa5+ {[%clk
0:00:59.2]} 43. Kb2 {[%clk 0:00:08.5]} 43... Qc3+ {[%clk 0:00:55.9]} 44. Ka3
{[%clk 0:00:07.8]} 44... Ra1 {[%clk 0:00:54.3]} 45. Bd5+ {[%clk 0:00:07]} 45...
Ke8 {[%clk 0:00:50.7]} 0-1

[Event "Live Chess"]
[Site "Chess.com"]
[Date "2024.06.01"]
[Round "-"]
[White "LL220284LL"]
[Black "Plato_77"]
[Result "1-0"]
[WhiteElo "2518"]
[BlackElo "1325"]
[TimeControl "300"]
[EndTime "15:12:02 PDT"]
[Termination "LL220284LL won by resignation"]

1. b3 {[%clk 0:04:58.3]} 1... Nf6 {[%clk 0:04:46.4]} 2. Bb2 {[%clk 0:04:58.2]}
2... e6 {[%clk 0:04:39.9]} 3. Nf3 {[%clk 0:04:56.2]} 3... d5 {[%clk 0:04:38.2]}
4. g3 {[%clk 0:04:46.9]} 4... Be7 {[%clk 0:04:36.8]} 5. Bg2 {[%clk 0:04:45.4]}
5... O-O {[%clk 0:04:35.2]} 6. O-O {[%clk 0:04:43.6]} 6... c5 {[%clk 0:04:32.3]}
7. d3 {[%clk 0:04:42.8]} 7... Nc6 {[%clk 0:04:31.3]} 8. Nbd2 {[%clk 0:04:41.1]}
8... b6 {[%clk 0:04:30.2]} 9. e4 {[%clk 0:04:38]} 9... dxe4 {[%clk 0:04:26.8]}
10. dxe4 {[%clk 0:04:37.9]} 10... Bb7 {[%clk 0:04:24.2]} 11. Qe2 {[%clk
0:04:35.4]} 11... Qc7 {[%clk 0:04:20.7]} 12. e5 {[%clk 0:04:31.9]} 12... Nd5
{[%clk 0:04:19.1]} 13. c4 {[%clk 0:04:29.4]} 13... Ndb4 {[%clk 0:04:13]} 14. Ne4
{[%clk 0:04:27.9]} 14... Rad8 {[%clk 0:04:04.5]} 15. h4 {[%clk 0:04:22]} 15...
Nd4 {[%clk 0:03:53.4]} 16. Nxd4 {[%clk 0:04:19.3]} 16... cxd4 {[%clk 0:03:53.3]}
17. a3 {[%clk 0:04:14.3]} 17... d3 {[%clk 0:03:49.7]} 18. Qg4 {[%clk 0:04:10.2]}
18... Nc2 {[%clk 0:03:29.7]} 19. Rad1 {[%clk 0:03:53.3]} 19... Bxa3 {[%clk
0:03:02.8]} 20. Nf6+ {[%clk 0:03:50.1]} 20... Kh8 {[%clk 0:02:58.7]} 21. Nh5
{[%clk 0:03:42.9]} 21... g6 {[%clk 0:02:51]} 22. Bxa3 {[%clk 0:03:40.2]} 22...
Nxa3 {[%clk 0:02:49.1]} 23. Bxb7 {[%clk 0:03:31.9]} 23... Qxb7 {[%clk 0:02:42]}
24. Nf6 {[%clk 0:03:29.9]} 24... h5 {[%clk 0:01:52.8]} 25. Qg5 {[%clk
0:03:26.5]} 1-0

[Event "Live Chess"]
[Site "Chess.com"]
[Date "2024.06.01"]
[Round "-"]
[White "Duke_of_Bebington"]
[Black "gmnorfolk"]
[Result "0-1"]
[WhiteElo "1636"]
[BlackElo "2111"]
[TimeControl "300"]
[EndTime "15:12:19 PDT"]
[Termination "gmnorfolk won by resignation"]

1. e4 {[%clk 0:04:58.3]} 1... c5 {[%clk 0:04:58.5]} 2. c3 {[%clk 0:04:57.1]}
2... d5 {[%clk 0:04:53.8]} 3. exd5 {[%clk 0:04:55.8]} 3... Qxd5 {[%clk
0:04:53.7]} 4. Nf3 {[%clk 0:04:54.7]} 4... Nc6 {[%clk 0:04:51.4]} 5. d4 {[%clk
0:04:53.1]} 5... Bg4 {[%clk 0:04:47.8]} 6. Be2 {[%clk 0:04:47.2]} 6... e6 {[%clk
0:04:41.9]} 7. O-O {[%clk 0:04:43.9]} 7... Nf6 {[%clk 0:04:39.9]} 8. Be3 {[%clk
0:04:25.9]} 8... cxd4 {[%clk 0:04:37.4]} 9. Nxd4 {[%clk 0:04:22.9]} 9... Bxe2
{[%clk 0:04:35.7]} 10. Nxe2 {[%clk 0:04:20.5]} 10... Qh5 {[%clk 0:04:34]} 11.
Ng3 {[%clk 0:04:16.7]} 11... Qa5 {[%clk 0:04:30.2]} 12. Na3 {[%clk 0:04:11]}
12... Nd5 {[%clk 0:04:25]} 13. Qf3 {[%clk 0:04:00.1]} 13... Bxa3 {[%clk
0:04:20.4]} 14. bxa3 {[%clk 0:03:57.7]} 14... Qxa3 {[%clk 0:04:18.5]} 15. Bd4
{[%clk 0:03:55.2]} 15... Nxd4 {[%clk 0:04:17.1]} 16. cxd4 {[%clk 0:03:54.2]}
16... Qxf3 {[%clk 0:04:16.6]} 17. gxf3 {[%clk 0:03:54.1]} 17... Kd7 {[%clk
0:04:11.9]} 18. Rab1 {[%clk 0:03:53.2]} 18... b6 {[%clk 0:04:10.3]} 19. Rfc1
{[%clk 0:03:52.2]} 19... Rac8 {[%clk 0:04:08.8]} 20. Ne4 {[%clk 0:03:51.2]}
20... h6 {[%clk 0:04:05.6]} 21. Kf1 {[%clk 0:03:43.7]} 21... Nf4 {[%clk
0:04:03.3]} 22. Ke1 {[%clk 0:03:41.7]} 22... f5 {[%clk 0:04:00.9]} 23. Ng3
{[%clk 0:03:15.6]} 23... Rxc1+ {[%clk 0:03:55.5]} 24. Rxc1 {[%clk 0:03:13.6]}
24... Nd3+ {[%clk 0:03:55.1]} 25. Kd2 {[%clk 0:03:12.2]} 25... Nxc1 {[%clk
0:03:54.7]} 26. Kxc1 {[%clk 0:03:12.1]} 0-1

[Event "Live Chess"]
[Site "Chess.com"]
[Date "2024.06.01"]
[Round "-"]
[White "Mangoalo"]
[Black "Crowded_House"]
[Result "0-1"]
[WhiteElo "1060"]
[BlackElo "1738"]
[TimeControl "300"]
[EndTime "15:12:21 PDT"]
[Termination "Crowded_House won by resignation"]

1. Nf3 {[%clk 0:04:58.1]} 1... e6 {[%clk 0:04:58.9]} 2. Ng1 {[%clk 0:04:58]}
2... d5 {[%clk 0:04:57.8]} 3. Nf3 {[%clk 0:04:57.9]} 3... c5 {[%clk 0:04:56.6]}
4. Ng1 {[%clk 0:04:57.8]} 4... Nc6 {[%clk 0:04:56]} 5. Nf3 {[%clk 0:04:57.1]}
5... Qb6 {[%clk 0:04:54.6]} 6. e3 {[%clk 0:04:56.8]} 6... Nf6 {[%clk 0:04:52]}
7. Be2 {[%clk 0:04:54.8]} 7... Bd7 {[%clk 0:04:49.3]} 8. O-O {[%clk 0:04:54.7]}
8... Bd6 {[%clk 0:04:48.1]} 9. c3 {[%clk 0:04:52.4]} 9... O-O {[%clk 0:04:44.4]}
10. d4 {[%clk 0:04:52.3]} 10... cxd4 {[%clk 0:04:37]} 11. cxd4 {[%clk
0:04:52.2]} 11... Rac8 {[%clk 0:04:28.7]} 12. Nc3 {[%clk 0:04:51.5]} 12... Na5
{[%clk 0:04:10.9]} 13. Qc2 {[%clk 0:04:49.6]} 13... Bb4 {[%clk 0:04:00.6]} 14.
Bd2 {[%clk 0:04:45.8]} 14... Rc7 {[%clk 0:03:49.4]} 15. a3 {[%clk 0:04:40.8]}
15... Bxc3 {[%clk 0:03:45.9]} 16. Bxc3 {[%clk 0:04:40.7]} 16... Rfc8 {[%clk
0:03:37.3]} 17. Rac1 {[%clk 0:04:30.8]} 17... Bb5 {[%clk 0:03:28.3]} 18. Bxb5
{[%clk 0:04:28]} 18... Qxb5 {[%clk 0:03:27.5]} 19. Rfd1 {[%clk 0:04:25.8]} 19...
Ne4 {[%clk 0:03:18.9]} 20. Ne5 {[%clk 0:04:23.8]} 20... Nxc3 {[%clk 0:03:11.2]}
21. bxc3 {[%clk 0:04:21.6]} 21... Qb3 {[%clk 0:03:05.8]} 22. Qd2 {[%clk
0:04:16.4]} 22... Qxa3 {[%clk 0:03:01.8]} 23. Rc2 {[%clk 0:03:59.1]} 23... Rxc3
{[%clk 0:02:50.8]} 24. Rdc1 {[%clk 0:03:59]} 24... Rxc2 {[%clk 0:02:42.5]} 25.
Rxc2 {[%clk 0:03:58.9]} 25... Qa1+ {[%clk 0:02:36.9]} 0-1

[Event "Live Chess"]
[Site "Chess.com"]
[Date "2024.06.01"]
[Round "-"]
[White "asingardenof"]
[Black "Berdgross"]
[Result "1-0"]
[WhiteElo "632"]
[BlackElo "581"]
[TimeControl "300"]
[EndTime "15:12:23 PDT"]
[Termination "asingardenof won by resignation"]

1. d4 {[%clk 0:04:56.4]} 1... d5 {[%clk 0:04:59.9]} 2. c4 {[%clk 0:04:55.1]}
2... e6 {[%clk 0:04:59.5]} 3. Nf3 {[%clk 0:04:53.6]} 3... dxc4 {[%clk
0:04:56.3]} 4. e3 {[%clk 0:04:47.8]} 4... Nf6 {[%clk 0:04:53.8]} 5. Bxc4 {[%clk
0:04:45.8]} 5... Nc6 {[%clk 0:04:49.6]} 6. Nc3 {[%clk 0:04:43.3]} 6... Bb4
{[%clk 0:04:47.6]} 7. Bd2 {[%clk 0:04:41.4]} 7... a6 {[%clk 0:04:44.1]} 8. O-O
{[%clk 0:04:39.3]} 8... O-O {[%clk 0:04:42.8]} 9. Qc2 {[%clk 0:04:30.2]} 9... g6
{[%clk 0:04:32.2]} 10. Ng5 {[%clk 0:04:18.5]} 10... Bxc3 {[%clk 0:04:18.7]} 11.
Bxc3 {[%clk 0:04:15.9]} 11... b5 {[%clk 0:04:14.3]} 12. Bd3 {[%clk 0:04:04.5]}
12... Qd5 {[%clk 0:04:04.9]} 13. Ne4 {[%clk 0:03:51.8]} 13... Bb7 {[%clk
0:03:57.9]} 14. Nxf6+ {[%clk 0:03:48.4]} 14... Kg7 {[%clk 0:03:36.3]} 15. Nxd5
{[%clk 0:03:48.3]} 15... exd5 {[%clk 0:03:34.9]} 16. Qe2 {[%clk 0:03:39.8]}
16... Ne7 {[%clk 0:03:27.1]} 17. Bb4 {[%clk 0:03:33.7]} 1-0

[Event "Live Chess"]
[Site "Chess.com"]
[Date "2024.06.01"]
[Round "-"]
[White "JohanKjeldahl"]
[Black "GEMdzq"]
[Result "0-1"]
[WhiteElo "1856"]
[BlackElo "2287"]
[TimeControl "300"]
[EndTime "15:12:27 PDT"]
[Termination "GEMdzq won by resignation"]

1. c4 {[%clk 0:04:55.8]} 1... e5 {[%clk 0:04:58.3]} 2. Nc3 {[%clk 0:04:54.8]}
2... Bc5 {[%clk 0:04:57.8]} 3. e3 {[%clk 0:04:53.1]} 3... Nf6 {[%clk 0:04:57.3]}
4. Nf3 {[%clk 0:04:52]} 4... O-O {[%clk 0:04:56.9]} 5. a3 {[%clk 0:04:49.2]}
5... e4 {[%clk 0:04:54.3]} 6. Ng5 {[%clk 0:04:46.5]} 6... Re8 {[%clk 0:04:52.5]}
7. b4 {[%clk 0:04:42.1]} 7... Bf8 {[%clk 0:04:51.4]} 8. Bb2 {[%clk 0:04:40.9]}
8... h6 {[%clk 0:04:49.7]} 9. Nh3 {[%clk 0:04:39]} 9... d5 {[%clk 0:04:48.4]}
10. Nf4 {[%clk 0:04:33]} 10... d4 {[%clk 0:04:40.9]} 11. Ncd5 {[%clk 0:04:29.4]}
11... d3 {[%clk 0:04:32.1]} 12. Nxf6+ {[%clk 0:04:23.5]} 12... gxf6 {[%clk
0:04:32]} 13. Qh5 {[%clk 0:04:15.5]} 13... Nc6 {[%clk 0:04:28.2]} 14. f3 {[%clk
0:04:07]} 14... Ne5 {[%clk 0:04:16.3]} 15. fxe4 {[%clk 0:04:02.8]} 15... Bg4
{[%clk 0:04:14.9]} 16. Qh4 {[%clk 0:03:57.2]} 16... f5 {[%clk 0:04:03.1]} 17.
Qxd8 {[%clk 0:03:52.3]} 17... Raxd8 {[%clk 0:04:03]} 18. exf5 {[%clk 0:03:48.3]}
18... Nxc4 {[%clk 0:03:57.3]} 19. Bd4 {[%clk 0:03:39.9]} 19... Rxd4 {[%clk
0:03:54.7]} 20. Kf2 {[%clk 0:03:24.5]} 20... Rdd8 {[%clk 0:03:37.9]} 21. Bxd3
{[%clk 0:03:20.8]} 21... Nxd2 {[%clk 0:03:27.8]} 22. h3 {[%clk 0:03:18.4]} 22...
Bh5 {[%clk 0:03:26.4]} 23. g4 {[%clk 0:03:16.6]} 23... Bd6 {[%clk 0:03:23.9]}
24. Nd5 {[%clk 0:02:57.3]} 24... Be5 {[%clk 0:03:20.5]} 25. gxh5 {[%clk
0:02:39.1]} 25... Rxd5 {[%clk 0:03:18.4]} 26. Be2 {[%clk 0:02:36]} 26... Bxa1
{[%clk 0:03:14.9]} 0-1

[Event "Live Chess"]
[Site "Chess.com"]
[Date "2024.06.01"]
[Round "-"]
[White "FlyingChessKestrel13"]
[Black "NottheBishopSacrifice"]
[Result "0-1"]
[WhiteElo "2082"]
[BlackElo "2267"]
[TimeControl "300"]
[EndTime "15:12:33 PDT"]
[Termination "NottheBishopSacrifice won by resignation"]

1. d3 {[%clk 0:04:57.4]} 1... d5 {[%clk 0:04:56]} 2. Nf3 {[%clk 0:04:56.5]} 2...
Nf6 {[%clk 0:04:54.4]} 3. g3 {[%clk 0:04:55.7]} 3... Bg4 {[%clk 0:04:51.8]} 4.
Bg2 {[%clk 0:04:54.5]} 4... Nbd7 {[%clk 0:04:50.8]} 5. O-O {[%clk 0:04:53.6]}
5... e5 {[%clk 0:04:49.7]} 6. Nbd2 {[%clk 0:04:52.8]} 6... Bd6 {[%clk
0:04:48.5]} 7. e4 {[%clk 0:04:51.8]} 7... c6 {[%clk 0:04:48]} 8. Re1 {[%clk
0:04:50.2]} 8... O-O {[%clk 0:04:46.4]} 9. h3 {[%clk 0:04:49.4]} 9... Bh5 {[%clk
0:04:44.8]} 10. g4 {[%clk 0:04:48.4]} 10... Bg6 {[%clk 0:04:43.5]} 11. Nh4
{[%clk 0:04:46]} 11... Re8 {[%clk 0:04:42.1]} 12. Nxg6 {[%clk 0:04:45.1]} 12...
hxg6 {[%clk 0:04:41.8]} 13. c3 {[%clk 0:04:42.1]} 13... Nc5 {[%clk 0:04:39.7]}
14. Nb3 {[%clk 0:04:39.5]} 14... dxe4 {[%clk 0:04:34.8]} 15. dxe4 {[%clk
0:04:34.8]} 15... Ne6 {[%clk 0:04:33.9]} 16. Be3 {[%clk 0:04:32.9]} 16... Bc7
{[%clk 0:04:31.7]} 17. Qc2 {[%clk 0:04:30.4]} 17... Bb6 {[%clk 0:04:29.7]} 18.
Rad1 {[%clk 0:04:28.4]} 18... Qc7 {[%clk 0:04:28.7]} 19. Bc1 {[%clk 0:04:24.4]}
19... a5 {[%clk 0:04:18.9]} 20. a4 {[%clk 0:04:22.4]} 20... Rad8 {[%clk
0:04:16.7]} 21. c4 {[%clk 0:04:19.6]} 21... Nd4 {[%clk 0:04:12.7]} 22. Nxd4
{[%clk 0:04:18.3]} 22... Bxd4 {[%clk 0:04:12.6]} 23. Be3 {[%clk 0:04:15.2]}
23... Bxe3 {[%clk 0:04:10.5]} 24. Rxe3 {[%clk 0:04:14.4]} 24... Nd7 {[%clk
0:04:06.8]} 25. c5 {[%clk 0:03:58.4]} 25... Nf8 {[%clk 0:04:04.3]} 26. Red3
{[%clk 0:03:56.3]} 26... Ne6 {[%clk 0:04:03.7]} 27. Rd6 {[%clk 0:03:53.2]} 27...
Nd4 {[%clk 0:04:01.2]} 28. Rxd8 {[%clk 0:03:50.3]} 28... Rxd8 {[%clk 0:03:57]}
29. Qc4 {[%clk 0:03:47]} 29... g5 {[%clk 0:03:55.2]} 30. Kh2 {[%clk 0:03:43.9]}
30... Qe7 {[%clk 0:03:53.2]} 31. Rd3 {[%clk 0:03:41.2]} 31... Qf6 {[%clk
0:03:51.6]} 32. f3 {[%clk 0:03:33.8]} 32... Qf4+ {[%clk 0:03:49.5]} 33. Kg1
{[%clk 0:03:32.2]} 33... g6 {[%clk 0:03:43.5]} 34. Kf2 {[%clk 0:03:28.9]} 34...
Kg7 {[%clk 0:03:42.2]} 35. b4 {[%clk 0:03:23.2]} 35... axb4 {[%clk 0:03:39.8]}
36. Qxb4 {[%clk 0:03:22.3]} 36... Ra8 {[%clk 0:03:38.7]} 37. Rxd4 {[%clk
0:03:19.4]} 37... exd4 {[%clk 0:03:35.1]} 38. Qxd4+ {[%clk 0:03:19]} 38... Qf6
{[%clk 0:03:34.4]} 39. e5 {[%clk 0:03:14.3]} 39... Qe6 {[%clk 0:03:33.5]} 40.
Bf1 {[%clk 0:03:08]} 40... Qa2+ {[%clk 0:03:31.4]} 41. Kg3 {[%clk 0:03:06]}
41... Rxa4 {[%clk 0:03:31]} 42. Qd6 {[%clk 0:02:51.6]} 42... Qe6 {[%clk
0:03:27]} 43. Bd3 {[%clk 0:02:47.5]} 43... Qxd6 {[%clk 0:03:13.3]} 44. exd6
{[%clk 0:02:41.5]} 44... Kf6 {[%clk 0:03:12.6]} 45. Kf2 {[%clk 0:02:39]} 45...
Ra5 {[%clk 0:03:10.9]} 46. Ke3 {[%clk 0:02:31]} 46... Rxc5 {[%clk 0:03:10.1]}
47. Be4 {[%clk 0:02:30.4]} 47... Ke6 {[%clk 0:03:07.6]} 48. Kd4 {[%clk
0:02:29.8]} 48... Kxd6 {[%clk 0:03:06.4]} 0-1